bitfinex-derivatives/quotes_SOLF0:USTF0_20260126
["timestamp","ask_amount","ask_price","bid_price","bid_amount"]
[1769392504817,3.61196367,122.26,122.18,40.00483243]
[1769392505017,3.61196367,122.25,122.18,40.00483243]
[1769392505321,7.3699,122.27,122.18,40.00483243]
[1769392505515,3.61375702,122.26,122.18,40.00483243]
[1769392505714,3.61375702,122.25,122.18,40.00483243]
[1769392505911,3.61375702,122.24,122.18,40.00483243]
[1769392506109,3.61209099,122.23,122.16,40.00483243]
[1769392506421,7.3709,122.26,122.16,40.00483243]
[1769392506723,3.61155876,122.25,122.16,40.00483243]
[1769392506918,3.61155876,122.24,122.16,40.00483243]
[1769392507121,3.61155876,122.23,122.16,40.00483243]
[1769392507319,7.3709,122.26,122.16,40.00483243]
[1769392507518,3.61068189,122.25,122.16,40.00483243]
[1769392507822,3.61068189,122.24,122.16,40.00483243]
[1769392508013,3.61068189,122.23,122.16,40.00483243]
[1769392508219,3.61095984,122.22,122.16,40.00483243]
[1769392508415,114.6745,122.24,122.16,40.00483243]
[1769392508416,3.61095984,122.21,122.16,40.00483243]
[1769392508616,3.61095984,122.2,122.16,40.00483243]
[1769392508817,7.3727,122.23,122.16,40.00483243]
[1769392509017,3.61108104,122.22,122.16,40.00483243]
[1769392509212,3.61108104,122.21,122.16,40.00483243]
[1769392509426,7.3727,122.23,122.18,0.05207165]
[1769392509723,3.61072233,122.22,122.18,0.05207165]
[1769392509918,3.61072233,122.21,122.18,0.05207165]
[1769392510119,7.3727,122.23,122.18,0.05207165]
[1769392510310,0.05421236,122.21,122.18,0.05207165]
[1769392510511,7.3714,122.25,122.18,40.05690408]
[1769392510718,3.6102809,122.24,122.18,40.05690408]
[1769392511022,3.6102809,122.23,122.18,40.05690408]
[1769392511224,7.3714,122.25,122.18,40.05690408]
[1769392511420,3.61023203,122.24,122.18,40.05690408]
[1769392511625,7.3714,122.25,122.18,40.05690408]
[1769392511823,3.60945864,122.24,122.18,40.05690408]
[1769392512024,7.3714,122.25,122.18,40.05690408]
[1769392512224,3.60945864,122.24,122.18,40.05690408]
[1769392512426,7.3714,122.25,122.18,40.05690408]
[1769392512629,3.60871989,122.24,122.18,40.05690408]
[1769392512926,7.3714,122.25,122.18,40.05690408]
[1769392513128,3.60871989,122.24,122.18,40.05690408]
[1769392513421,7.3714,122.25,122.18,40.05690408]
[1769392513620,7.3701,122.27,122.18,40.05690408]
[1769392513928,3.60788312,122.26,122.18,40.05690408]
[1769392514226,7.3701,122.27,122.18,40.00483243]
[1769392514422,7.3701,122.27,122.21,0.05957]
[1769392515124,5.01953497,122.29,122.21,40.03729625]
[1769392515125,7.3689,122.29,122.21,40.03729625]
[1769392515321,3.60640444,122.29,122.21,40.03729625]
[1769392515627,3.60640444,122.31,122.21,39.97772625]
[1769392515925,10.97480444,122.3,122.21,47.35092625]
[1769392516126,7.3684,122.3,122.24,0.05908378]
[1769392516624,10.97266362,122.3,122.24,0.05908378]
[1769392516820,7.3684,122.3,122.24,0.05908378]
[1769392517016,3.60227561,122.31,122.24,40.03681003]
[1769392517412,121.9703,122.32,122.24,39.97772625]
[1769392517815,114.6157,122.3,122.2,39.97772625]
[1769392518315,5.01953497,122.31,122.2,39.97772625]
[1769392518827,7.369,122.29,122.2,39.97772625]
[1769392519225,7.369,122.29,122.24,0.0567738]
[1769392521225,7.3696,122.28,122.24,0.0567738]
[1769392523537,121.9868,122.3,122.24,0.0567738]
[1769392523833,277.8285,122.3,122.24,0.0567738]
[1769392524132,7.3685,122.3,122.24,0.0567738]
[1769392527237,7.3685,122.3,122.24,40.03450005]
[1769392527442,7.3672,122.32,122.24,40.03450005]
[1769392527944,7.3677,122.31,122.24,39.97772625]
[1769392529240,5.01953497,122.33,122.24,39.97772625]
[1769392529445,7.3683,122.3,122.24,39.97772625]
[1769392529945,7.3672,122.32,122.24,39.97772625]
[1769392533154,7.3677,122.31,122.24,39.97772625]
[1769392533651,119.61073497,122.33,122.24,39.97772625]
[1769392533652,7.3683,122.3,122.24,39.97772625]
[1769392533852,119.60963497,122.33,122.24,39.97772625]
[1769392534951,7.3677,122.31,122.24,39.97772625]
[1769392542966,7.3672,122.32,122.24,39.97772625]
[1769392543470,114.5596,122.36,122.24,39.97772625]
[1769392544465,3.33040871,122.35,122.24,39.97772625]
[1769392544957,3.33040871,122.35,122.23,119.68596089]
[1769392544958,7.3661,122.34,122.26,39.97772625]
[1769392545958,119.54286089,122.39,122.27,39.97772625]
[1769392546164,3.32938481,122.38,122.27,39.97772625]
[1769392546364,10.69308481,122.38,122.29,39.97772625]
[1769392547061,166.28,122.41,122.29,39.97772625]
[1769392547062,7.3624,122.4,122.29,47.34612625]
[1769392547262,10.69072952,122.4,122.29,47.34612625]
[1769392548362,7.3624,122.4,122.29,47.34612625]
[1769392548763,7.3629,122.39,122.29,47.34612625]
[1769392551374,7.3635,122.38,122.29,39.97772625]
[1769392552370,7.3635,122.38,122.29,47.34612625]
[1769392552868,7.3624,122.4,122.3,44.98628714]
[1769392553968,7.3624,122.4,122.3,52.35418714]
[1769392554163,7.3624,122.4,122.31,39.97772625]
[1769392557373,7.3624,122.4,122.34,0.06038441]
[1769392557871,7.3624,122.4,122.34,40.03811066]
[1769392559570,7.3613,122.42,122.34,40.03811066]
[1769392560078,7.3613,122.42,122.34,39.97772625]
[1769392560568,7.3599,122.44,122.37,0.06012203]
[1769392560761,119.48636089,122.45,122.37,0.06012203]
[1769392561363,119.48636089,122.45,122.36,39.97772625]
[1769392561563,2.17735527,122.42,122.36,39.97772625]
[1769392561763,2.23969011,122.42,122.36,39.97772625]
[1769392561966,114.4406,122.49,122.36,114.557]
[1769392562167,2.17735527,122.46,122.4,38.8578812]
[1769392563078,2.17735527,122.45,122.4,38.8578812]
[1769392563277,2.17735527,122.44,122.36,41.03523647]
[1769392563472,2.17735527,122.44,122.38,38.8578812]
[1769392563771,2.17735527,122.46,122.41,0.05761345]
[1769392563967,2.17735527,122.47,122.41,38.91549465]
[1769392564474,2.17735527,122.47,122.41,38.8578812]
[1769392564663,2.17735527,122.45,122.41,38.8578812]
[1769392565470,299.0,122.55,122.33,95.58]
[1769392565471,114.4132,122.52,122.43,38.8578812]
[1769392566171,7.3563,122.5,122.43,38.8578812]
[1769392566370,114.4288,122.5,122.43,38.8578812]
[1769392568076,7.3569,122.49,122.43,38.8578812]
[1769392568469,12.34857394,122.51,122.43,38.8578812]
[1769392569978,7.3567,122.49,122.43,38.8578812]
[1769392570671,7.3555,122.51,122.43,38.8578812]
[1769392570874,114.4054,122.53,122.43,38.8578812]
[1769392571377,114.3877,122.55,122.43,38.8578812]
[1769392571772,7.354,122.54,122.45,38.8578812]
[1769392574079,7.3527,122.56,122.47,38.8578812]
[1769392574275,4.99277394,122.6,122.49,38.8578812]
[1769392574577,119.30997394,122.62,122.5,38.8578812]
[1769392574878,114.3074,122.63,122.52,38.8578812]
[1769392575071,119.31907394,122.61,122.52,38.8578812]
[1769392575267,114.3368,122.6,122.52,38.8578812]
[1769392575481,119.30637394,122.63,122.52,38.8578812]
[1769392575680,119.30637394,122.63,122.55,38.91250547]
[1769392575875,121.6668,122.62,122.55,38.91250547]
[1769392576080,114.3283,122.61,122.55,0.05462427]
[1769392576280,114.3355,122.6,122.53,38.8578812]
[1769392576482,12.34457394,122.58,122.5,38.8578812]
[1769392576679,119.33407394,122.6,122.5,38.8578812]
[1769392577074,119.33407394,122.6,122.53,0.0548447]
[1769392577272,4.99277394,122.6,122.53,0.0548447]
[1769392577478,4.99277394,122.62,122.53,38.9127259]
[1769392577682,114.31,122.63,122.53,38.9127259]
[1769392578084,114.31,122.63,122.53,38.8578812]
[1769392578384,7.3492,122.62,122.53,38.8578812]
[1769392578583,119.29117394,122.64,122.53,38.8578812]
[1769392579379,119.29117394,122.64,122.51,126.76447394]
[1769392579380,119.29117394,122.64,122.57,0.05788618]
[1769392580081,1.64,122.63,122.41,47.06482429]
[1769392580288,4.99277394,122.52,122.41,38.88682429]
[1769392580584,4.99277394,122.51,122.41,38.88682429]
[1769392580891,114.4222,122.51,122.41,38.88682429]
[1769392581075,114.4064,122.53,122.41,38.88682429]
[1769392581381,114.4041,122.53,122.41,38.88682429]
[1769392581787,114.4134,122.52,122.41,38.88682429]
[1769392581977,4.99277394,122.53,122.41,38.88682429]
[1769392582285,119.39587394,122.53,122.41,38.88682429]
[1769392583979,126.75017394,122.53,122.41,38.88682429]
[1769392584985,126.75017394,122.53,122.46,0.05291883]
[1769392585187,121.7674,122.52,122.46,0.05291883]
[1769392585489,119.41477394,122.51,122.41,71.59216649]
[1769392585690,119.47243177,122.51,122.41,71.59216649]
[1769392586186,114.4333,122.5,122.41,71.59216649]
[1769392586575,126.78997394,122.49,122.41,71.59216649]
[1769392586780,0.05294077,122.47,122.41,71.59216649]
[1769392588578,129.0344,122.61,122.41,71.59216649]
[1769392588782,129.0344,122.61,122.36,4.99277394]
[1769392588783,114.3503,122.59,122.46,186.0230961]
[1769392589081,114.3503,122.59,122.47,76.55847004]
[1769392589280,7.3507,122.59,122.47,83.91607004]
[1769392589480,7.3507,122.59,122.48,71.5656961]
[1769392590078,121.7092,122.58,122.48,71.5656961]
[1769392590479,7.3517,122.58,122.48,71.5656961]
[1769392590775,207.08,122.59,122.48,71.5656961]
[1769392591591,394.9314,122.6,122.48,71.5656961]
[1769392591887,121.6914,122.6,122.48,78.9224961]
[1769392592077,121.6959,122.59,122.48,78.9224961]
[1769392592981,7.351,122.59,122.48,78.9224961]
[1769392594889,7.3516,122.58,122.48,78.9224961]
[1769392595681,7.3516,122.58,122.48,71.5656961]
[1769392595682,7.3525,122.57,122.48,71.5656961]
[1769392596492,121.7167,122.57,122.48,71.5656961]
[1769392596791,114.3735,122.56,122.48,71.5656961]
[1769392597892,7.3534,122.55,122.48,71.5656961]
[1769392599186,107.2322,122.57,122.48,71.5656961]
[1769392599689,7.3528,122.56,122.48,71.5656961]
[1769392600793,7.3534,122.55,122.48,71.5656961]
[1769392604093,387.2238,122.57,122.48,71.5656961]
[1769392604398,392.21328353,122.57,122.48,71.5656961]
[1769392605396,273.52,122.56,122.48,71.5656961]
[1769392605997,7.3534,122.55,122.48,71.5656961]
[1769392606498,114.3936,122.54,122.45,71.5656961]
[1769392607800,7.3545,122.53,122.45,71.5656961]
[1769392608597,281.6945,122.53,122.45,71.5656961]
[1769392612396,276.36,122.52,122.45,71.5656961]
[1769392612904,114.3212,122.62,122.45,71.5656961]
[1769392612905,114.288,122.66,122.45,71.5656961]
[1769392613109,7.3521,122.57,122.48,69.07095434]
[1769392614006,119.30848353,122.62,122.5,69.07095434]
[1769392614307,286.24156574,122.61,122.5,69.07095434]
[1769392614507,276.86,122.61,122.5,69.07095434]
[1769392614704,116.2207,122.73,122.6,52.20643667]
[1769392615007,2.0,122.73,122.65,57.1959202]
[1769392615406,114.1792,122.77,122.66,51.20643667]
[1769392615407,121.522,122.77,122.66,51.20643667]
[1769392615706,114.1634,122.79,122.66,51.20643667]
[1769392615907,121.5175,122.77,122.66,51.20643667]
[1769392616113,114.1896,122.76,122.66,51.20643667]
[1769392616303,215.02,122.75,122.66,51.20643667]
[1769392616500,114.1813,122.77,122.66,51.20643667]
[1769392616808,7.3392,122.79,122.68,51.20643667]
[1769392617007,109.2,122.78,122.68,51.20643667]
[1769392617204,121.4973,122.79,122.68,51.20643667]
[1769392617408,209.28,122.77,122.68,51.20643667]
[1769392617600,7.3388,122.79,122.68,51.20643667]
[1769392617805,109.2,122.78,122.68,51.20643667]
[1769392619009,215.62,122.77,122.68,51.20643667]
[1769392619308,12.32708353,122.81,122.68,51.20643667]
[1769392619309,126.46938353,122.81,122.68,51.20643667]
[1769392619508,279.62,122.8,122.68,51.20643667]
[1769392619905,279.72,122.79,122.69,51.20643667]
[1769392620511,114.168,122.78,122.69,51.20643667]
[1769392620909,284.70948353,122.79,122.69,51.20643667]
[1769392621416,121.5079,122.78,122.69,51.20643667]
[1769392621616,114.1907,122.76,122.65,51.20643667]
[1769392621811,114.2078,122.74,122.65,51.20643667]
[1769392622011,114.1929,122.76,122.65,51.20643667]
[1769392622209,114.1741,122.78,122.65,51.20643667]
[1769392622517,106.58,122.77,122.67,51.20643667]
[1769392623116,220.7624,122.77,122.67,51.20643667]
[1769392623511,226.3,122.76,122.67,51.20643667]
[1769392624917,347.827,122.76,122.67,51.20643667]
[1769392627017,121.54,122.75,122.67,51.20643667]
[1769392627217,281.44,122.74,122.67,51.20643667]
[1769392627713,114.2178,122.73,122.64,51.20643667]
[1769392627915,114.236,122.71,122.59,51.20643667]
[1769392628715,4.98948353,122.72,122.59,51.20643667]
[1769392628918,282.02,122.71,122.61,51.20643667]
[1769392629309,121.5886,122.7,122.61,51.20643667]
[1769392630416,7.3442,122.7,122.61,51.20643667]
[1769392631017,121.5866,122.7,122.61,51.20643667]
[1769392632114,7.3451,122.69,122.61,51.20643667]
[1769392632515,282.86,122.68,122.61,51.20643667]
[1769392632824,282.86,122.67,122.61,51.20643667]
[1769392633224,282.86,122.67,122.58,51.20643667]
[1769392633818,283.32,122.66,122.58,51.20643667]
[1769392634213,283.46,122.66,122.59,51.20643667]
[1769392636529,397.7403,122.66,122.59,51.20643667]
[1769392636926,284.7,122.65,122.59,51.20643667]
[1769392639123,114.239,122.71,122.59,51.20643667]
[1769392639326,285.94,122.7,122.59,51.20643667]
[1769392640022,286.14,122.69,122.59,51.20643667]
[1769392640734,407.7384,122.69,122.59,51.20643667]
[1769392641729,286.78,122.68,122.59,51.20643667]
[1769392642334,286.78,122.68,122.59,58.55683667]
[1769392642633,401.0431,122.68,122.59,51.20643667]
[1769392643235,287.46,122.67,122.59,51.20643667]
[1769392643640,401.7358,122.67,122.59,51.20643667]
[1769392643939,114.2552,122.69,122.59,51.20643667]
[1769392644138,295.1255,122.68,122.59,58.55703667]
[1769392644336,295.1255,122.68,122.59,51.20643667]
[1769392644634,7.3455,122.68,122.59,51.20643667]
[1769392644836,288.06,122.67,122.59,51.20643667]
[1769392645836,288.5,122.66,122.59,51.20643667]
[1769392647931,289.3,122.65,122.59,51.20643667]
[1769392648744,296.6473,122.65,122.59,51.20643667]
[1769392649141,296.6473,122.65,122.57,51.20643667]
[1769392649338,7.3479,122.64,122.57,51.20643667]
[1769392649537,114.2983,122.64,122.54,51.20643667]
[1769392649933,7.3491,122.62,122.54,51.20643667]
[1769392653447,119.29158353,122.64,122.52,51.20643667]
[1769392653637,217.7508,122.63,122.52,56.1959202]
[1769392653943,114.3108,122.63,122.52,56.1959202]
[1769392654143,196.08,122.62,122.52,56.1959202]
[1769392654840,287.1,122.61,122.52,56.1959202]
[1769392655439,294.4497,122.61,122.52,56.1959202]
[1769392655643,7.3497,122.61,122.52,63.5505202]
[1769392655849,290.4,122.62,122.52,56.1959202]
[1769392656549,114.3108,122.63,122.52,56.1959202]
[1769392656745,290.56,122.62,122.52,56.1959202]
[1769392656946,290.56,122.62,122.53,7.354]
[1769392657149,297.9885,122.63,122.54,56.1959202]
[1769392657948,297.9885,122.63,122.54,63.5491202]
[1769392659542,298.9485,122.63,122.54,63.5491202]
[1769392661555,292.48,122.62,122.54,63.5491202]
[1769392661754,299.8291,122.62,122.54,63.5491202]
[1769392661953,7.3491,122.62,122.54,63.5491202]
[1769392662153,292.6,122.61,122.54,51.20643667]
[1769392662360,101.98,122.61,122.54,51.20643667]
[1769392662655,109.3297,122.61,122.54,51.20643667]
[1769392662856,225.38,122.6,122.54,51.20643667]
[1769392663151,232.7304,122.6,122.54,51.20643667]
[1769392663842,232.7304,122.6,122.51,51.20643667]
[1769392664041,293.14,122.59,122.51,51.20643667]
[1769392664458,293.14,122.59,122.47,316.78657299]
[1769392664751,4.98344363,122.54,122.39,76.53124836]
[1769392664952,114.4171,122.52,122.4,71.54780473]
[1769392665148,65.12,122.51,122.4,71.54780473]
[1769392665453,266.3427,122.51,122.4,71.54780473]
[1769392665753,121.7655,122.52,122.41,71.54780473]
[1769392665957,368.7855,122.52,122.44,0.0519956]
[1769392666252,416.5255,122.52,122.44,0.0519956]
[1769392666458,416.5255,122.52,122.41,71.54780473]
[1769392666658,114.4248,122.51,122.41,71.54780473]
[1769392667258,0.05832702,122.47,122.41,71.54780473]
[1769392673460,7.3559,122.51,122.41,71.54780473]
[1769392675261,7.3559,122.51,122.45,0.05252129]
[1769392676054,0.05164367,122.49,122.45,0.05252129]
[1769392679764,0.05164367,122.49,122.38,71.54245897]
[1769392679965,0.05164367,122.49,122.29,114.6161]
[1769392679966,114.4581,122.47,122.37,71.54780473]
[1769392680267,119.45044363,122.46,122.37,71.54780473]
[1769392680566,121.8363,122.45,122.37,71.54780473]
[1769392681364,0.05778215,122.42,122.37,71.54780473]
[1769392683065,12.34094363,122.48,122.37,71.54780473]
[1769392683256,126.78914363,122.48,122.37,71.54780473]
[1769392683462,126.78914363,122.48,122.39,71.56871962]
[1769392683765,7.3575,122.48,122.39,71.56871962]
[1769392683968,121.8055,122.48,122.39,71.56871962]
[1769392684361,7.3575,122.48,122.42,0.06112908]
[1769392687765,7.3582,122.47,122.42,0.06112908]
[1769392688665,4.98344363,122.48,122.42,0.06112908]
[1769392688871,7.3594,122.45,122.36,71.56871962]
[1769392690271,0.06048589,122.42,122.36,78.93291962]
[1769392691068,7.3594,122.45,122.36,78.93291962]
[1769392691269,7.3581,122.47,122.38,71.58372714]
[1769392691472,7.3581,122.47,122.38,71.64481596]
[1769392691968,7.3581,122.47,122.38,71.58372714]
[1769392693072,7.3581,122.47,122.41,0.05394535]
[1769392694472,7.3567,122.49,122.41,71.63767249]
[1769392695072,7.3567,122.49,122.41,71.58372714]
[1769392695573,7.3567,122.49,122.44,0.05191953]
[1769392696671,114.4608,122.47,122.36,71.58131112]
[1769392696875,4.98344363,122.44,122.36,71.58131112]
[1769392697071,119.47074363,122.44,122.36,71.58131112]
[1769392697877,7.3605,122.43,122.36,71.58131112]
[1769392700677,12.34534363,122.41,122.31,78.94851112]
[1769392701281,7.3619,122.41,122.31,78.94851112]
[1769392707484,400.3267,122.42,122.31,71.58131112]
[1769392707783,0.05347414,122.37,122.31,71.58131112]
[1769392709086,119.48004363,122.43,122.32,71.58131112]
[1769392709287,114.5144,122.41,122.33,0.06268145]
[1769392709490,7.3623,122.4,122.33,71.64399257]
[1769392709788,7.3623,122.4,122.33,71.58131112]
[1769392710582,7.3623,122.4,122.35,0.05248935]
[1769392712086,7.3636,122.38,122.35,0.05248935]
[1769392712289,7.3636,122.38,122.3,71.58131112]
[1769392713685,0.05833234,122.35,122.3,71.58131112]
[1769392720901,7.3635,122.38,122.3,71.58131112]
[1769392721097,7.3635,122.38,122.31,71.61185595]
[1769392724398,7.3641,122.37,122.31,71.61185595]
[1769392724904,7.3641,122.37,122.31,71.55456097]
[1769392725302,7.3641,122.37,122.33,0.06123951]
[1769392727596,9.54314223,122.37,122.33,0.06123951]
[1769392727896,7.3641,122.37,122.33,0.06123951]
[1769392728400,7.3641,122.37,122.35,19.01382743]
[1769392728606,7.3641,122.37,122.33,0.06123951]
[1769392729704,9.54314223,122.37,122.33,0.06123951]
[1769392734204,2.17904223,122.36,122.33,0.06123951]
[1769392734711,2.17904223,122.34,122.26,71.55456097]
[1769392734902,9.54434223,122.35,122.28,71.55456097]
[1769392735101,0.06016592,122.36,122.29,73.7336032]
[1769392735300,7.3647,122.36,122.3,2.17904223]
[1769392736305,0.06118265,122.34,122.3,2.17904223]
[1769392736904,0.06118265,122.34,122.29,73.7336032]
[1769392742212,0.06118265,122.34,122.29,71.55456097]
[1769392742213,7.42708265,122.34,122.29,71.55456097]
[1769392742614,0.06118265,122.34,122.28,2.17904223]
[1769392742917,7.3666,122.33,122.27,2.17904223]
[1769392743117,7.3666,122.33,122.26,2.17904223]
[1769392743312,0.06118265,122.34,122.29,2.17904223]
[1769392743513,7.3655,122.35,122.23,436.00879766]
[1769392743718,7.3655,122.35,122.29,2.17904223]
[1769392743921,0.06155649,122.33,122.29,2.17904223]
[1769392745218,0.06155649,122.33,122.3,67.4236532]
[1769392745718,7.3655,122.35,122.3,67.4236532]
[1769392746122,0.05696325,122.33,122.3,67.4236532]
[1769392746625,0.05696325,122.33,122.3,65.24461097]
[1769392754231,0.05696325,122.33,122.3,67.4236532]
[1769392755230,0.05696325,122.33,122.3,65.24461097]
[1769392755625,7.364,122.37,122.31,67.39517158]
[1769392755831,7.364,122.37,122.33,2.17904223]
[1769392756929,7.364,122.37,122.34,0.06220298]
[1769392758932,2.17904223,122.4,122.34,0.06220298]
[1769392759139,7.3631,122.39,122.34,0.06220298]
[1769392761439,9.54214223,122.39,122.34,0.06220298]
[1769392761842,7.3635,122.38,122.34,0.06220298]
[1769392764542,9.54254223,122.38,122.34,0.06220298]
[1769392764744,7.420143,122.37,122.32,65.21612935]
[1769392772345,7.420143,122.37,122.29,65.21612935]
[1769392772346,2.17904223,122.34,122.29,65.21612935]
[1769392773245,2.2325148,122.33,122.29,65.21612935]
[1769392773451,0.05347257,122.33,122.29,40.56012935]
[1769392773652,2.2325148,122.33,122.29,28.23212935]
[1769392773852,2.2325148,122.33,122.26,2.17904223]
[1769392774653,13.09089962,122.33,122.24,7.3713]
[1769392774857,13.09089962,122.33,122.26,2.17904223]
[1769392775151,20.40392705,122.33,122.25,2.17904223]
[1769392775554,0.05229294,122.31,122.26,48.08484338]
[1769392782650,2.17904223,122.34,122.26,50.26388561]
[1769392782844,2.17904223,122.34,122.28,48.08484338]
[1769392783248,14.31966833,122.35,122.28,48.08484338]
[1769392783454,2.17904223,122.34,122.28,48.08484338]
[1769392783953,9.54494223,122.34,122.28,48.08484338]
[1769392784254,9.54494223,122.34,122.3,0.05784769]
[1769392784954,2.17904223,122.33,122.3,0.05784769]
[1769392785550,2.17904223,122.33,122.28,48.08484338]
[1769392785852,2.23063534,122.33,122.28,48.08484338]
[1769392787555,2.23223152,122.33,122.28,48.08484338]
[1769392790957,114.5619,122.36,122.28,48.08484338]
[1769392791254,73.8244355,122.43,122.34,2.18063841]
[1769392791561,81.1850355,122.43,122.34,2.18063841]
[1769392792264,71.64379709,122.43,122.36,2.18063841]
[1769392792450,71.64379709,122.43,122.37,0.05922179]
[1769392793557,73.8244355,122.43,122.37,0.05922179]
[1769392793759,0.06276739,122.41,122.35,2.18063841]
[1769392796658,73.88720289,122.41,122.31,7.45170438]
[1769392796860,2.18063841,122.37,122.29,2.18063841]
[1769392797567,0.05642038,122.34,122.29,2.18063841]
[1769392797770,0.05642038,122.34,122.27,122.08940438]
[1769392797771,0.05642038,122.34,122.3,2.18063841]
[1769392799266,73.8244355,122.38,122.31,2.18063841]
[1769392799559,71.64379709,122.38,122.31,2.18063841]
[1769392799862,71.64379709,122.38,122.32,2.18063841]
[1769392800066,81.1870355,122.4,122.33,2.18063841]
[1769392800265,71.64379709,122.4,122.33,2.18063841]
[1769392800462,73.8244355,122.43,122.36,2.18063841]
[1769392800862,71.64379709,122.43,122.36,2.18063841]
[1769392801168,71.64379709,122.43,122.38,0.05521582]
[1769392801364,73.8244355,122.43,122.38,0.05521582]
[1769392801567,73.88498423,122.41,122.34,2.18063841]
[1769392801769,73.88498423,122.41,122.33,2.18063841]
[1769392802259,73.8244355,122.41,122.33,2.18063841]
[1769392802763,71.64379709,122.41,122.33,2.18063841]
[1769392803062,73.81623046,122.43,122.35,2.18063841]
[1769392803262,73.81623046,122.43,122.37,2.18063841]
[1769392803263,71.63559205,122.43,122.37,2.18063841]
[1769392803863,71.63559205,122.43,122.38,2.18063841]
[1769392804064,71.63559205,122.43,122.37,2.18063841]
[1769392804458,71.63559205,122.43,122.39,0.05207538]
[1769392806967,71.63559205,122.45,122.39,2.23271379]
[1769392807166,73.81623046,122.47,122.4,2.18063841]
[1769392807570,71.63559205,122.47,122.4,2.18063841]
[1769392808065,71.63559205,122.47,122.42,0.06162966]
[1769392809277,71.63559205,122.49,122.42,2.24226807]
[1769392810070,73.81623046,122.49,122.42,0.06162966]
[1769392810571,2.18063841,122.48,122.42,0.06162966]
[1769392811673,73.81623046,122.49,122.42,0.06162966]
[1769392812368,73.81623046,122.49,122.42,7.42222966]
[1769392812873,73.81623046,122.49,122.42,0.06162966]
[1769392813259,2.18063841,122.48,122.42,0.06162966]
[1769392814563,2.18063841,122.47,122.42,0.06162966]
[1769392814861,2.18063841,122.46,122.42,0.06162966]
[1769392815176,2.18063841,122.47,122.42,0.06162966]
[1769392815378,71.61298226,122.45,122.36,108.26]
[1769392815566,2.18063841,122.41,122.35,7.3646]
[1769392815876,2.18063841,122.41,122.33,9.54663841]
[1769392816074,2.18063841,122.4,122.33,7.366]
[1769392816372,2.18063841,122.39,122.32,9.54723841]
[1769392816573,2.18063841,122.4,122.33,2.18063841]
[1769392816776,0.06142405,122.38,122.33,2.18063841]
[1769392818675,0.06142405,122.38,122.33,9.54663841]
[1769392818970,0.06142405,122.38,122.33,7.366]
[1769392819175,0.06142405,122.38,122.33,9.54663841]
[1769392821978,2.18063841,122.37,122.31,7.3672]
[1769392822876,0.05208186,122.35,122.31,7.3672]
[1769392823075,2.18063841,122.37,122.31,7.3672]
[1769392824482,2.18063841,122.37,122.33,0.0525569]
[1769392825571,2.18063841,122.36,122.33,0.0525569]
[1769392826779,2.18063841,122.35,122.3,207.5]
[1769392828093,2.18063841,122.34,122.27,320.7724215]
[1769392828287,2.18063841,122.33,122.27,530.9724215]
[1769392828477,73.79362067,122.34,122.27,530.9724215]
[1769392828678,73.79362067,122.34,122.27,533.15305991]
[1769392829186,0.05350666,122.32,122.27,533.15305991]
[1769392829679,0.05350666,122.32,122.27,530.9724215]
[1769392830486,73.79362067,122.34,122.27,533.15305991]
[1769392832183,73.79362067,122.34,122.27,530.9724215]
[1769392833384,2.18063841,122.32,122.27,313.4027215]
[1769392833583,2.18063841,122.31,122.24,218.52063841]
[1769392833780,2.18063841,122.31,122.24,216.34]
[1769392834177,2.18063841,122.31,122.24,223.7113]
[1769392834377,2.18063841,122.31,122.26,0.05332389]
[1769392834584,2.18063841,122.29,122.22,2.18063841]
[1769392834885,2.23778095,122.29,122.23,216.88]
[1769392835086,0.05714254,122.29,122.23,216.88]
[1769392835274,73.79362067,122.29,122.23,216.88]
[1769392835479,2.18063841,122.28,122.23,216.88]
[1769392835887,71.61298226,122.29,122.23,216.88]
[1769392836085,0.05683599,122.27,122.23,216.88]
[1769392841184,73.85045666,122.27,122.2,323.43441742]
[1769392841394,73.85045666,122.27,122.21,222.58]
[1769392842388,2.18063841,122.26,122.21,222.58]
[1769392842891,71.66981825,122.27,122.21,222.58]
[1769392843097,73.79362067,122.26,122.21,222.58]
[1769392843282,2.18063841,122.23,122.16,2.18063841]
[1769392843488,2.18063841,122.22,122.17,223.96]
[1769392843688,2.18063841,122.22,122.17,224.0]
[1769392844192,0.05424944,122.21,122.17,224.0]
[1769392844495,73.79362067,122.23,122.17,224.0]
[1769392844694,71.61298226,122.29,122.21,2.18063841]
[1769392844884,71.61298226,122.29,122.23,2.18063841]
[1769392845084,71.61298226,122.29,122.22,2.18063841]
[1769392845284,2.18063841,122.28,122.19,8.179]
[1769392845494,2.18063841,122.26,122.19,2.18063841]